fUST/lending_fUST_20250927
["ID","MTS","AMOUNT","RATE_DAILY","PERIOD"]
[388009197,1758963052935,-151.0,0.0004244,120]
[388009199,1758963052945,-151.0,0.0004244,120]
[388009201,1758963052954,-151.0,0.0004244,120]
[388009203,1758963052964,-151.0,0.0004244,120]
[388009205,1758963052973,-153.033533,0.0004244,120]
[388009207,1758963052982,-151.0,0.0004244,120]
[388009209,1758963052991,-151.0,0.0004244,120]
[388009211,1758963053000,-151.0,0.0004244,120]
[388009213,1758963053010,-151.0,0.0004244,120]
[388009215,1758963053020,-151.0,0.0004244,120]
[388009218,1758963053034,-244.07609,0.0004244,120]
[388009219,1758963053044,-244.07609,0.0004244,120]
[388009221,1758963053054,-244.07609,0.0004244,120]
[388009223,1758963053064,-244.07609,0.0004244,120]
[388009225,1758963053075,-766.928801,0.0004244,15]
[388009227,1758963053084,-766.928801,0.0004244,15]
[388009229,1758963053095,-766.928801,0.0004244,15]
[388009231,1758963053105,-766.928801,0.0004244,15]
[388009233,1758963053115,-151.0,0.0004244,120]
[388009235,1758963053124,-151.0,0.0004244,120]
[388009237,1758963053134,-151.0,0.0004244,120]
[388009239,1758963053143,-151.0,0.0004244,120]
[388009241,1758963053154,-151.0,0.0004244,120]
[388009243,1758963053164,-151.0,0.0004244,120]
[388009245,1758963053173,-218.234687,0.0004244,120]
[388009247,1758963053183,-151.0,0.0004244,30]
[388009249,1758963053193,-152.788456,0.0004244,30]
[388009251,1758963053203,-151.402512,0.0004244,120]
[388009253,1758963053214,-151.0,0.0004244,120]
[388009255,1758963053224,-151.0,0.0004244,120]
[388009257,1758963053234,-304.550415,0.0004244,120]
[388009259,1758963053243,-304.550415,0.0004244,120]
[388009261,1758963053253,-304.550415,0.0004244,120]
[388009263,1758963053262,-304.550415,0.0004244,120]
[388009265,1758963053272,-151.0,0.0004244,120]
[388009267,1758963053281,-159.210637,0.0004244,120]
[388009269,1758963053290,-3975.920543,0.0004244,120]
[388009271,1758963053300,-553.086356,0.0004244,120]
[388009273,1758963053309,-3975.920543,0.0004244,120]
[388009275,1758963053319,-553.086356,0.0004244,120]
[388009277,1758963053328,-151.461474,0.0004244,120]
[388009279,1758963053337,-3975.920543,0.0004244,120]
[388009281,1758963053347,-151.0,0.0004244,120]
[388009283,1758963053356,-553.086356,0.0004244,120]
[388009285,1758963053365,-3975.920543,0.0004244,120]
[388009302,1758963053523,-553.086356,0.0004244,120]
[388009304,1758963053534,-735.463051,0.0004244,120]
[388009306,1758963053544,-735.463051,0.0004244,120]
[388009308,1758963053553,-151.0,0.0004244,120]
[388009310,1758963053563,-151.0,0.0004244,120]
[388009312,1758963053573,-735.463051,0.0004244,120]
[388009314,1758963053582,-735.463051,0.0004244,120]
[388009316,1758963053593,-151.0,0.0004244,120]
[388009318,1758963053603,-151.0,0.0004244,120]
[388009320,1758963053612,-216.450528,0.0004244,120]
[388009322,1758963053622,-216.450528,0.0004244,120]
[388009324,1758963053632,-216.450528,0.0004244,120]
[388009326,1758963053641,-3567.88985,0.0004244,120]
[388009328,1758963053652,-216.450528,0.0004244,120]
[388009330,1758963053661,-3567.88985,0.0004244,120]
[388009332,1758963053670,-3567.88985,0.0004244,120]
[388009334,1758963053680,-3567.88985,0.0004244,120]
[388009336,1758963053689,-195.321784,0.0004244,120]
[388009338,1758963053699,-195.321784,0.0004244,120]
[388009340,1758963053709,-195.321784,0.0004244,120]
[388009342,1758963053719,-195.321784,0.0004244,120]
[388009344,1758963053728,-151.0,0.0004244,120]
[388009346,1758963053737,-151.0,0.0004244,120]
[388009348,1758963053747,-474.066855,0.0004244,120]
[388009350,1758963053756,-151.0,0.0004244,120]
[388009352,1758963053766,-474.066855,0.0004244,120]
[388009354,1758963053777,-474.066855,0.0004244,120]
[388009356,1758963053790,-474.066855,0.0004244,120]
[388009358,1758963053802,-151.0,0.0004244,120]
[388009360,1758963053822,-346.041521,0.0004244,120]
[388009362,1758963053833,-151.0,0.0004244,120]
[388009364,1758963053843,-346.041521,0.0004244,120]
[388009366,1758963053852,-346.041521,0.0004244,120]
[388009368,1758963053862,-346.041521,0.0004244,120]
[388009370,1758963053872,-151.0,0.0004244,120]
[388009372,1758963053881,-305.766923,0.0004244,120]
[388009374,1758963053891,-305.766923,0.0004244,120]
[388009376,1758963053900,-305.766923,0.0004244,120]
[388009378,1758963053909,-305.766923,0.0004244,120]
[388009380,1758963053919,-844.003055,0.0004244,120]
[388009382,1758963053928,-844.003055,0.0004244,120]
[388009384,1758963053937,-844.003055,0.0004244,120]
[388009386,1758963053947,-151.0,0.0004244,120]
[388009388,1758963053958,-844.003055,0.0004244,120]
[388009391,1758963053974,-151.0,0.0004244,120]
[388009392,1758963053984,-151.0,0.0004244,120]
[388009395,1758963053993,-152.716367,0.0004244,120]
[388009396,1758963054003,-151.0,0.0004244,120]
[388009398,1758963054012,-151.0,0.0004244,120]
[388009400,1758963054023,-151.0,0.0004244,120]
[388009402,1758963054034,-151.667505,0.0004244,120]
[388009404,1758963054043,-151.0,0.0004244,120]
[388009406,1758963054052,-151.0,0.0004244,120]
[388009408,1758963054062,-151.0,0.0004244,120]
[388009410,1758963054071,-151.0,0.0004244,120]
[388009412,1758963054081,-151.528695,0.0004244,120]
[388009414,1758963054090,-151.0,0.0004244,120]
[388009416,1758963054100,-151.0,0.0004244,120]
[388009418,1758963054110,-151.0,0.0004244,120]
[388009420,1758963054120,-151.0,0.0004244,120]
[388009422,1758963054129,-151.0,0.0004244,120]
[388009424,1758963054139,-151.0,0.0004244,120]
[388009426,1758963054149,-151.0,0.0004244,120]
[388009429,1758963054159,-151.0,0.0004244,120]
[388009431,1758963054170,-151.0,0.0004244,120]
[388009432,1758963054180,-151.0,0.0004244,120]
[388009434,1758963054190,-151.0,0.0004244,120]
[388009436,1758963054200,-151.0,0.0004244,120]
[388009438,1758963054211,-151.0,0.0004244,120]
[388009440,1758963054222,-151.0,0.0004244,120]
[388009442,1758963054232,-151.0,0.0004244,120]
[388009444,1758963054242,-232.687576,0.0004244,120]
[388009446,1758963054252,-151.422777,0.0004244,120]
[388009448,1758963054268,-151.0,0.0004244,120]
[388009450,1758963054277,-151.0,0.0004244,120]
[388009452,1758963054287,-151.0,0.0004244,120]
[388009454,1758963054296,-158.031285,0.0004244,120]
[388009456,1758963054305,-151.0,0.0004244,120]
[388009458,1758963054314,-151.0,0.0004244,120]
[388009460,1758963054324,-151.0,0.0004244,120]
[388009462,1758963054334,-427.370384,0.0004244,120]
[388009463,1758963054343,-151.0,0.0004244,120]
[388009465,1758963054353,-427.370384,0.0004244,120]
[388009467,1758963054362,-427.370384,0.0004244,120]
[388009469,1758963054372,-500.0,0.00042473,10]
[388009471,1758963054381,-9142.08570056,0.000425,3]
[388009473,1758963054390,-1163325.41698312,0.000425,2]
[388009486,1758963054667,-1819.05417158,0.000425,2]
[388009488,1758963054678,-8248.85304119,0.000425,2]
[388009491,1758963054693,-3285.82794831,0.000425,2]
[388009520,1758963054969,1320.82596586,0.00024953,13]
[388009523,1758963054990,441.0,0.00024953,13]
[388012379,1758963091751,-3238.17403414,0.00024953,13]
[388012380,1758963131808,177.0,0.00023616,10]
[388012381,1758963162645,3346.66193172,0.00024953,2]
[388012382,1758963162668,1653.33806828,0.00024953,2]
[388012383,1758963185204,5000.0,0.00024953,2]
[388012384,1758963193249,3346.67193172,0.00024953,2]
[388012385,1758963193270,1653.32806828,0.00024953,2]
[388012386,1758963215981,308.12676033,0.00024953,2]
[388012387,1758963268404,-174.31641897,0.00029968,60]
[388012388,1758963269042,-174.31641897,0.00025,2]
[388012400,1758963385060,5000.0,0.00024953,2]
[388012401,1758963392139,-226.22313968,0.00025,2]
[388012402,1758963393271,4216.34699256,0.00024953,2]
[388012403,1758963409147,5000.0,0.00025,2]
[388012404,1758963417215,331.21672808,0.00025,2]
[388012405,1758963417238,4668.78327192,0.00025,2]
[388012406,1758963432693,5000.0,0.00025,2]
[388012411,1758963448537,264.35054532,0.00025,2]
[388012412,1758963456882,66.87618276,0.00025,2]
[388012413,1758963456907,4933.12381724,0.00025,2]
[388012414,1758963460680,2000.0,0.00028246,120]
[388012415,1758963461034,943.655,0.00028246,120]
[388012416,1758963480463,5000.0,0.00025,2]
[388012417,1758963488304,66.88618276,0.00025,2]
[388012418,1758963488326,179.47595346,0.00025,2]
[388012420,1758963582419,507.198,0.00028246,120]
[388012421,1758963584933,508.70814137,0.00025,2]
[388012422,1758963593530,1010.996614,0.00025,2]
[388012423,1758963600720,1683.34,0.00025,2]
[388012424,1758963602514,695.89623038,0.00025,2]
[388012425,1758963603147,9255.9,0.00024102,120]
[388012426,1758963618924,1414.42046146,0.00025,2]
[388012427,1758963627131,1541.43068796,0.00025,2]
[388012431,1758963874618,-174.31641897,0.00030159,120]
[388012432,1758963875786,-174.31641897,0.00030159,120]
[388012433,1758963876493,-174.31641897,0.00030159,120]
[388012434,1758963976712,417.15472785,0.00025,30]
[388012435,1758964000748,-2198.24854666,0.00024211,13]
[388012436,1758964031194,-268.6804719,0.00024456,13]
[388012437,1758964033430,160.0,0.00024211,2]
[388012438,1758964080095,173.53,0.0001812,2]
[388012439,1758964080402,173.53,0.0001812,2]
[388012440,1758964080681,173.52,0.0001812,2]
[388012441,1758964147084,-1024.7050426,0.00024456,13]
[388012442,1758964147105,-361.08636947,0.00024824,2]
[388012443,1758964147128,-1000.0,0.00024924,2]
[388012444,1758964147149,-666.0,0.00024975,2]
[388012445,1758964147169,-300.0,0.00025075,2]
[388012446,1758964147189,-4914.3670903,0.00025076,2]
[388012447,1758964147210,-160.0,0.00025076,2]
[388012448,1758964147231,-902.355852,0.00025148,2]
[388012449,1758964147251,-190.2173757,0.00025199,2]
[388012450,1758964147272,-166.37053027,0.0002574,5]
[388012451,1758964147292,-224.32238904,0.00026342,2]
[388012452,1758964147311,-150.0,0.00026379,2]
[388012453,1758964147331,-160.0,0.00026431,2]
[388012454,1758964147354,-1200.0,0.00026435,2]
[388012455,1758964147375,-500.0,0.00026435,2]
[388012456,1758964147395,-500.0,0.00026435,2]
[388012457,1758964147416,-500.0,0.00026435,2]
[388012458,1758964147438,-209.65,0.00026435,2]
[388012459,1758964147459,-561.27294469,0.00026435,2]
[388012460,1758964147480,-500.0,0.00026435,2]
[388012461,1758964147502,-500.0,0.00026435,2]
[388012462,1758964147522,-523.45496549,0.00026435,2]
[388012463,1758964147545,-500.0,0.00026435,2]
[388012464,1758964147566,-500.0,0.00026435,2]
[388012465,1758964147771,-500.0,0.00026435,2]
[388012466,1758964147798,-500.0,0.00026435,2]
[388012467,1758964147821,-322.92068737,0.00026435,2]
[388012468,1758964147843,-500.0,0.00026435,2]
[388012469,1758964147866,-500.0,0.00026435,2]
[388012470,1758964147886,-267.69305263,0.00026435,2]
[388012471,1758964147907,-500.0,0.00026435,2]
[388012472,1758964147930,-388.69288605,0.00026435,2]
[388012473,1758964147951,-50000.0,0.00026436,2]
[388012474,1758964147972,-1200.0,0.00026442,2]
[388012475,1758964147993,-300.0,0.00026443,2]
[388012476,1758964148013,-300.0,0.00026443,2]
[388012477,1758964148042,-300.0,0.00026443,2]
[388012478,1758964148063,-610.44565746,0.00026445,2]
[388012479,1758964148087,-500.0,0.00026445,2]
[388012480,1758964148107,-392.59344627,0.00026445,2]
[388012481,1758964148128,-21512.230046,0.00026446,2]
[388012482,1758964148150,-767.42,0.00026463,10]
[388012483,1758964148171,-500.0,0.00026473,2]
[388012484,1758964148210,-500.0,0.00026473,2]
[388012485,1758964148239,-500.0,0.00026473,2]
[388012486,1758964148262,-500.0,0.00026473,2]
[388012487,1758964148285,-500.0,0.00026473,2]
[388012488,1758964148309,-506.73248982,0.00026473,2]
[388012489,1758964148331,-501.84917034,0.00026473,2]
[388012490,1758964148353,-500.0,0.00026473,2]
[388012491,1758964148376,-500.0,0.00026473,2]
[388012492,1758964148398,-500.0,0.00026473,2]
[388012493,1758964148421,-500.0,0.00026473,2]
[388012494,1758964148447,-301.72968958,0.00026473,2]
[388012495,1758964148471,-500.0,0.00026473,2]
[388012496,1758964148496,-500.0,0.00026473,2]
[388012497,1758964148522,-500.0,0.00026473,2]
[388012498,1758964148547,-501.54049966,0.00026473,2]
[388012499,1758964148573,-153.48,0.00026567,10]
[388012500,1758964148598,-1672.7563103,0.00026577,2]
[388012501,1758964148621,-500.0,0.00026672,2]
[388012502,1758964148644,-34534.81028396,0.00026672,2]
[388012503,1758964152123,-160.0,0.00025075,2]
[388012504,1758964152147,-1263.82558688,0.00026672,2]
[388012538,1758964172147,-13425.70176456,0.00026672,2]
[388012539,1758964172168,-422.74090948,0.00026672,2]
[388012540,1758964172188,-1214.72,0.00026692,2]
[388012541,1758964172209,-500.0,0.00026778,2]
[388012542,1758964172230,-12701.4074442,0.00026792,2]
[388012543,1758964172251,-258.12653421,0.00026994,2]
[388012544,1758964172273,-1000.0,0.00027021,2]
[388012545,1758964172297,-1000.0,0.00027021,2]
[388012546,1758964172318,-1000.0,0.00027021,2]
[388012547,1758964172338,-500.0,0.00027021,2]
[388012548,1758964172357,-1000.0,0.00027021,2]
[388012549,1758964172376,-296.33432936,0.00027021,2]
[388012550,1758964172396,-1000.0,0.00027021,2]
[388012551,1758964172417,-1000.0,0.00027021,2]
[388012552,1758964172437,-1000.0,0.00027021,2]
[388012553,1758964172458,-1000.0,0.00027021,2]
[388012554,1758964172479,-485.7374942,0.00027117,2]
[388012555,1758964172499,-500.0,0.00027117,2]
[388012556,1758964172519,-500.0,0.00027117,2]
[388012557,1758964172539,-500.0,0.00027117,2]
[388012558,1758964172559,-482.218,0.00027123,15]
[388012559,1758964172584,-178.333,0.00027123,15]
[388012560,1758964172605,-420.0,0.00027162,2]
[388012561,1758964172628,-150.0,0.00027172,2]
[388012562,1758964172648,-1000.0,0.00027326,2]
[388012563,1758964172669,-160.0,0.00027348,2]
[388012564,1758964172689,-1418.12989226,0.00027397,30]
[388012565,1758964172710,-224.32238903,0.00027493,2]
[388012566,1758964172730,-1500.0,0.00027568,5]
[388012567,1758964172755,-1500.0,0.00027568,5]
[388012568,1758964172775,-1500.0,0.00027568,5]
[388012569,1758964172796,-1500.0,0.00027568,5]
[388012570,1758964172833,-1500.0,0.00027568,5]
[388012571,1758964172855,-1500.0,0.00027568,5]
[388012572,1758964172875,-1500.0,0.00027568,5]
[388012573,1758964172897,-1500.0,0.00027568,2]
[388012574,1758964172916,-451.11506411,0.00027665,5]
[388012575,1758964172936,-1000.0,0.00027665,5]
[388012576,1758964172956,-500.0,0.00027665,5]
[388012577,1758964172976,-508.83544185,0.00027874,5]
[388012578,1758964172997,-260.0,0.00027896,2]
[388012579,1758964173017,-500.0,0.00027939,5]
[388012580,1758964173039,-150.0,0.00027965,7]
[388012581,1758964173060,-21019.93681481,0.0002799,2]
[388013225,1758964231916,-470.21261488,0.00026398,2]
[388013234,1758964231971,-5139.08496042,0.00026398,2]
[388013235,1758964231982,-3976.99999999,0.00026398,2]
[388013236,1758964231993,-2006.5,0.00026398,2]
[388013237,1758964232037,-824.26587541,0.00026398,2]
[388013238,1758964232047,-1479.80351842,0.00026398,2]
[388013239,1758964232059,-1335.13735634,0.00026398,2]
[388013240,1758964232950,500.0,8.219e-05,2]
[388013241,1758964233017,500.0,8.493e-05,2]
[388013242,1758964233113,634.41,8.767e-05,2]
[388013273,1758964238044,-273.9358989,0.00026398,2]
[388013274,1758964238056,-1622.29239258,0.00026398,2]
[388013275,1758964238149,-249.40743026,0.00026398,2]
[388013276,1758964238160,-1549.1636807,0.00026506,2]
[388013277,1758964238171,-154.29920956,0.00026574,2]
[388013278,1758964238181,-251.96589474,0.00026574,2]
[388013279,1758964238192,-313.65785415,0.00026574,2]
[388013280,1758964238203,-168.912722,0.00026764,2]
[388013281,1758964238213,-300.0,0.00027989,2]
[388013282,1758964238223,-300.0,0.00027989,2]
[388013283,1758964238234,-1200.0,0.00027989,2]
[388013284,1758964238245,-427.31196023,0.00027989,2]
[388013285,1758964238255,-624.81541239,0.00027989,2]
[388013286,1758964238265,-78980.06318519,0.0002799,2]
[388013287,1758964238276,-49224.3376354,0.00028104,2]
[388013288,1758964238287,-422.74090948,0.00028104,2]
[388013289,1758964238297,-23695.5538649,0.00028114,2]
[388013290,1758964238307,-404.2961185,0.00028116,5]
[388013291,1758964238318,-2000.0,0.00028116,5]
[388013292,1758964238329,-1505.04014538,0.00028116,5]
[388013293,1758964238339,-245.44121266,0.00028116,5]
[388013294,1758964238349,-2000.0,0.00028116,5]
[388013295,1758964238360,-500.0228115,0.00028116,2]
[388013296,1758964238370,-3644.17250767,0.00028116,2]
[388013297,1758964238380,-1500.0,0.00028213,5]
[388013298,1758964238391,-500.0,0.00028502,5]
[388013299,1758964238401,-500.0,0.00028502,5]
[388013300,1758964238411,-24987.17323558,0.00028564,2]
[388013301,1758964238421,-1680.0,0.00028596,2]
[388013302,1758964238432,-49224.3376354,0.00028654,2]
[388013303,1758964238442,-422.74090948,0.00028654,2]
[388013304,1758964238452,-1000.0,0.00028664,5]
[388013305,1758964238462,-2500.0,0.00028664,5]
[388013306,1758964238472,-500.0,0.00028665,10]
[388013307,1758964238482,-500.0,0.00028743,5]
[388013308,1758964238492,-500.0,0.00028743,5]
[388013309,1758964238503,-500.0,0.00028743,5]
[388013310,1758964238515,-500.0,0.00028743,5]
[388013311,1758964238525,-500.0,0.00028743,5]
[388013312,1758964238537,-150.0,0.00028758,7]
[388013313,1758964238547,-2000.0,0.00028761,5]
[388013314,1758964238558,-1037.65160236,0.00028765,2]
[388013315,1758964238568,-500.0,0.00028835,5]
[388013316,1758964238579,-500.19968035,0.00028835,5]
[388013317,1758964238590,-500.0,0.00028835,5]
[388013318,1758964238600,-500.0,0.00028835,5]
[388013319,1758964238613,-500.0,0.00028835,5]
[388013320,1758964238623,-500.0,0.00028835,5]
[388013321,1758964238633,-500.0,0.00028835,5]
[388013322,1758964238648,-500.0,0.00028835,5]
[388013323,1758964238661,-500.0,0.00028835,5]
[388013324,1758964238672,-500.0,0.00028835,5]
[388013325,1758964238683,-6270.9775951,0.00028941,2]
[388013326,1758964238694,-600.6141563,0.0002905,5]
[388013327,1758964238704,-1000.0,0.0002905,5]
[388013328,1758964238714,-3000.0,0.00029212,5]
[388013329,1758964238724,-500.0,0.00029212,5]
[388013330,1758964238734,-500.73192138,0.00029273,5]
[388013331,1758964238744,-500.0,0.00029273,2]
[388013332,1758964238758,-190.28680251,0.00029273,5]
[388013333,1758964238768,-500.0,0.00029273,5]
[388013334,1758964238778,-500.0,0.00029273,5]
[388013335,1758964238788,-500.0,0.00029273,5]
[388013336,1758964238799,-500.0,0.00029273,5]
[388013337,1758964238810,-500.0,0.00029273,5]
[388013338,1758964238819,-500.0,0.00029273,5]
[388013339,1758964238829,-504.03477072,0.00029273,3]
[388013340,1758964238841,-501.34391062,0.00029273,5]
[388013341,1758964238851,-150.0,0.00029273,5]
[388013342,1758964238861,-500.0,0.00029273,5]
[388013343,1758964238871,-500.0,0.00029273,5]
[388013344,1758964238881,-49224.3376354,0.00029281,2]
[388013345,1758964238891,-422.74090948,0.00029281,2]
[388013346,1758964238901,-175.82137953,0.00029291,5]
[388013347,1758964238911,-1000.0,0.00029291,5]
[388013348,1758964238921,-502.37786568,0.00029291,5]
[388013349,1758964238931,-505.40604951,0.00029291,5]
[388013350,1758964238941,-502.74973854,0.00029291,5]
[388013351,1758964238951,-3670.71,0.000293,2]
[388013352,1758964238960,-2500.0,0.00029308,5]
[388013353,1758964238970,-160.0,0.00029344,2]
[388013354,1758964238980,-1000.0,0.00029383,5]
[388013355,1758964238991,-1000.0,0.00029383,5]
[388013356,1758964239003,-1000.0,0.00029383,5]
[388013357,1758964239013,-1000.0,0.00029383,5]
[388013358,1758964239023,-263.69267931,0.00029383,5]
[388013359,1758964239033,-300.0,0.0002941,5]
[388013360,1758964239043,-1549.1636807,0.00029472,2]
[388013361,1758964239053,-311.4000447,0.00029486,5]
[388013362,1758964239064,-150.39697451,0.00029547,5]
[388013363,1758964239074,-150.0,0.00029551,7]
[388013364,1758964239084,-165.94254313,0.00029598,5]
[388013365,1758964239093,-282.0824487,0.00029713,2]
[388013366,1758964239104,-3500.0,0.0002976,5]
[388013367,1758964239114,-1000.0,0.00029821,2]
[388013368,1758964239124,-199.9352921,0.00029821,5]
[388013369,1758964239134,-1000.0,0.00029821,5]
[388013370,1758964239144,-549.90401721,0.00029821,5]
[388013371,1758964239154,-1000.0,0.00029821,5]
[388013372,1758964239164,-1000.0,0.00029821,5]
[388013373,1758964239173,-1000.0,0.00029821,5]
[388013374,1758964239182,-1000.0,0.00029821,5]
[388013375,1758964239192,-1000.0,0.00029821,5]
[388013376,1758964239203,-1500.0,0.00029839,5]
[388013377,1758964239213,-49224.3376354,0.00029846,2]
[388013378,1758964239223,-422.74090948,0.00029846,2]
[388013379,1758964239233,-3000.0,0.00029856,5]
[388013380,1758964239244,-260.0,0.00029892,2]
[388013381,1758964239255,-1500.0,0.00029931,5]
[388013382,1758964239267,-1500.0,0.00029931,5]
[388013383,1758964239277,-1119.08091985,0.00029931,5]
[388013384,1758964239287,-713.76180221,0.00029931,5]
[388013385,1758964239297,-49224.3376354,0.0002998,2]
[388013386,1758964239306,-845.48181896,0.0002998,2]
[388013387,1758964239316,-189.00975,0.0003,2]
[388013388,1758964239326,-1115.46,0.0003,2]
[388013389,1758964239336,-12614.18061366,0.00030049,2]
[388013390,1758964239347,-154.93,0.00030106,15]
[388013392,1758964239358,-1000.0,0.00030136,120]
[388013394,1758964239368,-422.74090948,0.00030139,2]
[388013395,1758964239378,-1115.46,0.0003014,2]
[388013396,1758964239388,-150.0,0.00030173,5]
[388013397,1758964239398,-420.0,0.00030228,2]
[388013398,1758964239408,-1000.0,0.00030273,120]
[388013399,1758964239418,-618.89736804,0.00030308,5]
[388013400,1758964239428,-150.0,0.00030344,7]
[388013401,1758964239438,-1680.0,0.0003036,2]
[388013402,1758964239449,-1500.0,0.00030368,2]
[388013403,1758964239459,-1505.33455032,0.00030368,5]
[388013404,1758964239470,-1500.0,0.00030368,5]
[388013405,1758964239482,-1500.0,0.00030368,5]
[388013406,1758964239492,-528.30750259,0.00030368,5]
[388013408,1758964239503,-1500.0,0.00030368,5]
[388013409,1758964239513,-1500.0,0.00030368,5]
[388013410,1758964239523,-422.74090948,0.00030377,2]
[388013411,1758964239534,-2000.0,0.00030387,5]
[388013412,1758964239544,-3118.55167241,0.00030404,5]
[388013413,1758964239554,-1000.0,0.0003041,120]
[388013414,1758964239563,-360.0,0.0003044,2]
[388013415,1758964239573,-2000.0,0.00030479,5]
[388013416,1758964239584,-1056.59633791,0.00030479,5]
[388013417,1758964239594,-1000.0,0.00030547,120]
[388013418,1758964239604,-703.77,0.00030549,3]
[388013419,1758964239614,-175.94,0.00030549,3]
[388013420,1758964239625,-527.85,0.00030549,3]
[388013421,1758964239635,-2815.07,0.00030559,3]
[388013422,1758964239645,-1407.53,0.00030559,3]
[388013423,1758964239655,-351.88,0.00030559,3]
[388013424,1758964239665,-500.0,0.00030569,15]
[388013425,1758964239675,-199.0,0.00030569,14]
[388013426,1758964239684,-1000.0,0.00030684,120]
[388013427,1758964239694,-250.0,0.00030721,5]
[388013428,1758964239703,-1000.0,0.00030821,120]
[388013429,1758964239713,-3670.71,0.000309,2]
[388013430,1758964239723,-1857.10656999,0.00030916,2]
[388013431,1758964239732,-1500.0,0.00030916,5]
[388013432,1758964239742,-2000.0,0.00030916,5]
[388013433,1758964239754,-1005.31747528,0.00030916,5]
[388013434,1758964239767,-2000.0,0.00030916,5]
[388013435,1758964239778,-422.74090948,0.00030925,2]
[388013436,1758964239787,-2351.0,0.00030933,2]
[388013437,1758964239797,-440.63749265,0.00030935,5]
[388013438,1758964239808,-1000.0,0.00030958,120]
[388013439,1758964239818,-460.0,0.00030988,2]
[388013440,1758964239828,-1882.8902014,0.00031027,5]
[388013441,1758964239838,-153.05260373,0.00031084,10]
[388013442,1758964239849,-1000.0,0.00031095,120]
[388013443,1758964239858,-150.0,0.00031136,7]
[388013444,1758964239868,-500.0,0.0003122,5]
[388013445,1758964239878,-500.0,0.0003122,5]
[388013446,1758964239888,-500.0,0.0003122,5]
[388013447,1758964239898,-500.0,0.0003122,5]
[388013448,1758964239908,-500.0,0.0003122,5]
[388013449,1758964239918,-1000.0,0.00031232,120]
[388013450,1758964239928,-199.0,0.00031253,15]
[388013451,1758964239937,-500.0,0.00031253,5]
[388013452,1758964239946,-500.0,0.00031253,5]
[388013453,1758964239956,-233.76631357,0.00031255,120]
[388013454,1758964239966,-350.0,0.00031268,5]
[388013455,1758964239976,-322.67539989,0.00031286,2]
[388013456,1758964239986,-514.04169068,0.00031286,2]
[388013457,1758964239997,-168.912722,0.00031331,60]
[388013458,1758964240007,-1000.0,0.00031369,120]
[388013459,1758964240016,-2500.0,0.00031464,5]
[388013460,1758964240026,-2500.0,0.00031464,5]
[388013461,1758964240035,-422.74090948,0.00031472,2]
[388013462,1758964240045,-500.0,0.00031506,15]
[388013463,1758964240055,-1000.0,0.00031506,120]
[388013464,1758964240064,-560.0,0.00031536,2]
[388013465,1758964240074,-628.98752193,0.00031569,2]
[388013466,1758964240084,-925.27504323,0.00031596,2]
[388013467,1758964240093,-1000.0,0.00031643,120]
[388013468,1758964240103,-422.74090948,0.00031646,2]
[388013469,1758964240113,-500.0,0.00031667,2]
[388013470,1758964240123,-500.0,0.00031667,5]
[388013471,1758964240132,-400.72523889,0.00031667,5]
[388013472,1758964240142,-1000.0,0.00031768,5]
[388013473,1758964240151,-1000.0,0.00031768,5]
[388013474,1758964240162,-1000.0,0.00031768,5]
[388013475,1758964240181,-1000.0,0.00031768,5]
[388013476,1758964240191,-1000.0,0.0003178,7]
[388013477,1758964240202,-1000.0,0.0003178,120]